Cogmind - Beta 13 @@@ ROGUE MODE // 2024.05.04 @ 06:34:39 Player: ToasterKoishi Result: Destroyed by S-43 Plague with Heavy Machine Gun Performance ------------- Evolutions (7) 3500 Regions Visited (10) 2000 Robots Destroyed (0) 0 Value Destroyed (0) 0 Prototype IDs (0) 0 Alien Tech Used (0) 0 Bonus (4585) 4585 TOTAL SCORE: 10085 Bonus ------- Pacifist 4085 Entered DSFs 500 Cogmind --------- Core Integrity 0/1300 Matter 300/300 Energy 100/100 System Corruption 8% Temperature Cool (0) Movement Core (50) Location -3/Research Parts ------- > --- POWER (1) -------- (None) > --- PROPULSION (6) --- (None) > --- UTILITY (12) ----- (None) > --- WEAPON (2) ------- (None) > --- INVENTORY (5) ---- Lance Peak State ------------ > --- POWER ------------ (None) > --- PROPULSION ------- Nuclear Pulse Thruster Nuclear Pulse Thruster Improved Surge Thruster Improved Surge Thruster > --- UTILITY ---------- (None) > --- WEAPON ----------- (None) > --- INVENTORY -------- Nuclear Pulse Thruster Nuclear Pulse Thruster Advanced Assault Cannon Lance [Rating: 22] Favorites ----------- Power Micro Nuclear Core Power Core Micro Nuclear Core Propulsion Nuclear Pulse Thruster Flight Unit Nuclear Pulse Thruster Utility Structural Scanner Device Structural Scanner Weapon None Build | -11 -10 -9 -8 -7 -7 -6 -5 -5 -4 -3 ------- Run | Yrd Mat Mat Mat Fac DSF Fac Fac Ext Fac Res Slots Evolved 14 | . . 2 2 2 . 2 2 . 2 2 Power . | . . . . . . . . . . . Propulsion 4 | . . . . . . 2 . . 2 . Utility 10 | . . 2 2 2 . . 2 . . 2 Weapon . | . . . . . . . . . . . Parts Attached 13 | . . . 1 . 1 2 5 4 . . Power 1 | . . . . . . . . 1 . . Engine . | . . . . . . . . . . . Core 1 | . . . . . . . . 1 . . Reactor . | . . . . . . . . . . . Propulsion 10 | . . . . . . 2 5 3 . . Treads . | . . . . . . . . . . . Leg . | . . . . . . . . . . . Wheel . | . . . . . . . . . . . Hover . | . . . . . . . . . . . Flight 10 | . . . . . . 2 5 3 . . Utility 2 | . . . 1 . 1 . . . . . Device 2 | . . . 1 . 1 . . . . . Storage . | . . . . . . . . . . . Processor . | . . . . . . . . . . . Hackware . | . . . . . . . . . . . Protection . | . . . . . . . . . . . Artifact . | . . . . . . . . . . . Weapon . | . . . . . . . . . . . Energy Gun . | . . . . . . . . . . . Energy Cannon . | . . . . . . . . . . . Ballistic Gun . | . . . . . . . . . . . Ballistic Cannon . | . . . . . . . . . . . Launcher . | . . . . . . . . . . . Special Weapon . | . . . . . . . . . . . Impact Weapon . | . . . . . . . . . . . Slashing Weapon . | . . . . . . . . . . . Piercing Weapon . | . . . . . . . . . . . Special Melee Weapon . | . . . . . . . . . . . Unidentified Prototypes . | . . . . . . . . . . . Parts Lost 11 | . . . 1 . 1 1 4 3 1 . Power 1 | . . . . . . . . 1 . . Propulsion 8 | . . . . . . 1 4 2 1 . Utility 2 | . . . 1 . 1 . . . . . Weapon . | . . . . . . . . . . . Highest Loss Streak 3 | . . . 1 . 2 1 3 3 1 . To Critical Strikes . | . . . . . . . . . . . Average Slot Usage (%) 3 | . . . 4 . . 1 6 18 1 . Flight 2 | . . . . . . 1 6 12 1 . Naked Turns 405 | . 34 42 9 1 21 95 30 . 46 127 Heaviest Build 6 | . . . 1 . 1 . . 6 . . Greatest Support 20 | 3 3 3 3 3 3 12 20 18 6 3 Greatest Overweight (x) . | . . . . . . . . . . . Average Overweight (x) . | . . . . . . . . . . . Largest Inventory Capacity 5 | 5 5 5 5 5 5 5 5 5 5 5 Average Capacity 5 | 5 5 5 5 5 5 5 5 5 5 5 Most Carried 5 | . . . 1 1 1 1 5 4 1 1 Average Carried 1 | . . . . 1 . 1 2 1 1 1 Final Capacity 5 | 5 5 5 5 5 5 5 5 5 5 5 Final Carried 5 | . . . 1 1 1 1 5 1 1 1 Class Distribution -------------------- 100% | Mutant Dominant Class ---------------- Mutant | -10/Materials Mutant | -9/Materials Mutant | -8/Materials Mutant | -7/Factory Mutant | -7/DSF Mutant | -6/Factory Mutant | -5/Factory Mutant | -5/Extension Mutant | -4/Factory Mutant | -3/Research Resources | -11 -10 -9 -8 -7 -7 -6 -5 -5 -4 -3 ----------- Run | Yrd Mat Mat Mat Fac DSF Fac Fac Ext Fac Res Matter Collected 271 | 200 . . . . . . . . 71 . Remotely . | . . . . . . . . . . . Salvage Created . | . . . . . . . . . . . Parts . | . . . . . . . . . . . Haulers Intercepted . | . . . . . . . . . . . Recyclers Shooed . | . . . . . . . . . . . Parts Field Recycled . | . . . . . . . . . . . Retrieved Matter . | . . . . . . . . . . . Parts Self-Destructed . | . . . . . . . . . . . Prevented . | . . . . . . . . . . . Kills | -11 -10 -9 -8 -7 -7 -6 -5 -5 -4 -3 ------- Run | Yrd Mat Mat Mat Fac DSF Fac Fac Ext Fac Res Combat Hostiles Destroyed . | . . . . . . . . . . . Classes Destroyed . | . . . . . . . . . . . Best Kill Streak . | . . . . . . . . . . . Combat Bots Only . | . . . . . . . . . . . Max Kills in Single Turn . | . . . . . . . . . . . Gunslinging . | . . . . . . . . . . . Exploded . | . . . . . . . . . . . Melee . | . . . . . . . . . . . Uniques/NPCs Destroyed . | . . . . . . . . . . . Combat | -11 -10 -9 -8 -7 -7 -6 -5 -5 -4 -3 -------- Run | Yrd Mat Mat Mat Fac DSF Fac Fac Ext Fac Res Hostile Shots Fired 375 | . . 33 15 . 20 55 88 15 82 67 Missed 160 | . . 11 5 . 8 31 35 7 35 28 Damage Taken 4515 | . 7 180 166 . 300 379 1146 206 822 1309 Core 4018 | . 7 180 146 . 280 347 850 112 787 1309 Absorbed by Shields . | . . . . . . . . . . . Core Remaining (%) 59 | 100 97 55 73 . 60 59 . 3 31 . Volleys Fired . | . . . . . . . . . . . Largest . | . . . . . . . . . . . Hottest . | . . . . . . . . . . . Shots Fired . | . . . . . . . . . . . Gun . | . . . . . . . . . . . Cannon . | . . . . . . . . . . . Launcher . | . . . . . . . . . . . Special . | . . . . . . . . . . . Kinetic . | . . . . . . . . . . . Thermal . | . . . . . . . . . . . Explosive . | . . . . . . . . . . . Electromagnetic . | . . . . . . . . . . . Robot Hit Streak . | . . . . . . . . . . . Robot Miss Streak . | . . . . . . . . . . . Penetration Max . | . . . . . . . . . . . Secondary Targets . | . . . . . . . . . . . Shots Hit Robots . | . . . . . . . . . . . Core Hits 2 | . . . . . . . . . . 2 Critical Kills . | . . . . . . . . . . . Critical Parts Destroyed . | . . . . . . . . . . . Critical Strikes . | . . . . . . . . . . . Melee Attacks . | . . . . . . . . . . . Impact . | . . . . . . . . . . . Slashing . | . . . . . . . . . . . Piercing . | . . . . . . . . . . . Sneak Attacks . | . . . . . . . . . . . Combat Hostiles . | . . . . . . . . . . . Follow-up Attacks . | . . . . . . . . . . . Damage Inflicted 72 | . 15 . . . . . . . 21 36 Guns . | . . . . . . . . . . . Cannons . | . . . . . . . . . . . Explosions . | . . . . . . . . . . . Melee . | . . . . . . . . . . . Ramming 72 | . 15 . . . . . . . 21 36 Kinetic . | . . . . . . . . . . . Thermal . | . . . . . . . . . . . Explosive . | . . . . . . . . . . . Electromagnetic . | . . . . . . . . . . . Impact . | . . . . . . . . . . . Slashing . | . . . . . . . . . . . Piercing . | . . . . . . . . . . . Highest Corruption 8 | . . . 1 . . . . . . 8 Average Corruption 2 | . . . 1 . . . . . . 2 Corruption Purged . | . . . . . . . . . . . Corruption Blocked . | . . . . . . . . . . . Effects 1 | . . . . . . . . . . 1 Matter Fused 1 | . . . . . . . . . . 1 Overload Shots . | . . . . . . . . . . . Overflow Damage . | . . . . . . . . . . . Projectiles . | . . . . . . . . . . . Explosions . | . . . . . . . . . . . Melee . | . . . . . . . . . . . Knockbacks . | . . . . . . . . . . . Impact . | . . . . . . . . . . . Kinetic . | . . . . . . . . . . . Secondary . | . . . . . . . . . . . Self-Inflicted Damage 34 | . 7 . . . . . . . 10 17 Shots . | . . . . . . . . . . . Rammed 10 | . 1 . . . . . 1 . 3 5 Targets Rammed 10 | . 1 . . . . . 1 . 3 5 Kicked . | . . . . . . . . . . . Crushed . | . . . . . . . . . . . Highest Temperature 10 | . . . . . . . 10 . . . Average Temperature 10 | . . . . . . . 10 . . . Received Heat Transfer 417 | . . . 54 . 12 54 128 33 63 73 Siege Activations . | . . . . . . . . . . . Robots Corrupted . | . . . . . . . . . . . Combat Hostiles . | . . . . . . . . . . . Parts Fried . | . . . . . . . . . . . Impact Corruptions . | . . . . . . . . . . . Robots Melted . | . . . . . . . . . . . Combat Hostiles . | . . . . . . . . . . . Parts Melted . | . . . . . . . . . . . Heat Transferred . | . . . . . . . . . . . Parts Sabotaged . | . . . . . . . . . . . Parts Stolen . | . . . . . . . . . . . Parts Stripped . | . . . . . . . . . . . Power Chain Reactions . | . . . . . . . . . . . Alert | -11 -10 -9 -8 -7 -7 -6 -5 -5 -4 -3 ------- Run | Yrd Mat Mat Mat Fac DSF Fac Fac Ext Fac Res Peak Influence 329 | . 15 20 38 12 11 140 329 198 125 276 Initial 153 | . . 5 8 12 11 . 68 153 81 81 Average 98 | . 5 11 22 12 3 34 205 157 95 136 Maximum Alert Level 1 | . . . . . . . 1 . . 1 Low Security (%) 84 | 100 100 100 100 100 100 100 41 100 100 79 Level 1 15 | . . . . . . . 58 . . 20 Level 2 . | . . . . . . . . . . . Level 3 . | . . . . . . . . . . . Level 4 . | . . . . . . . . . . . Level 5 . | . . . . . . . . . . . High Security . | . . . . . . . . . . . Max Security . | . . . . . . . . . . . Squads Dispatched 8 | . . . 2 . . . 2 . 2 2 Investigation 2 | . . . . . . . . . 1 1 Extermination . | . . . . . . . . . . . Reinforcement 6 | . . . 2 . . . 2 . 1 1 Assault . | . . . . . . . . . . . Garrison . | . . . . . . . . . . . Intercept . | . . . . . . . . . . . Searches Triggered . | . . . . . . . . . . . Construction Impeded 1 | . . . . . . . . . . 1 Haulers Reinforced . | . . . . . . . . . . . Active Scanning Responses . | . . . . . . . . . . . Cargo Convoy Interrupts . | . . . . . . . . . . . Stealth | -11 -10 -9 -8 -7 -7 -6 -5 -5 -4 -3 --------- Run | Yrd Mat Mat Mat Fac DSF Fac Fac Ext Fac Res Distress Signals 3 | . . . 1 . . . . . 1 1 Communications Jammed . | . . . . . . . . . . . Distress Signals . | . . . . . . . . . . . Times Spotted 103 | . 1 4 12 . 2 15 26 4 15 24 Peak Tracking Total 20 | . 1 6 14 . 2 9 8 4 13 20 Tactical Retreats 10 | . . . . . . 3 4 . 1 2 Traps | -11 -10 -9 -8 -7 -7 -6 -5 -5 -4 -3 ------- Run | Yrd Mat Mat Mat Fac DSF Fac Fac Ext Fac Res Traps Triggered 5 | . . . 1 . 1 . . . . 3 Indirectly . | . . . . . . . . . . . Trap Hack Attempts . | . . . . . . . . . . . Triggered . | . . . . . . . . . . . Disarmed . | . . . . . . . . . . . Reprogrammed . | . . . . . . . . . . . Reused . | . . . . . . . . . . . Traps Extracted . | . . . . . . . . . . . Installed . | . . . . . . . . . . . Triggered . | . . . . . . . . . . . Machines | -11 -10 -9 -8 -7 -7 -6 -5 -5 -4 -3 ---------- Run | Yrd Mat Mat Mat Fac DSF Fac Fac Ext Fac Res Machines Disabled . | . . . . . . . . . . . Max in Single Turn . | . . . . . . . . . . . Machines Repaired . | . . . . . . . . . . . Machines Dismantled . | . . . . . . . . . . . Machines Sabotaged . | . . . . . . . . . . . Overloaded Fab Kills . | . . . . . . . . . . . Hacking | -11 -10 -9 -8 -7 -7 -6 -5 -5 -4 -3 --------- Run | Yrd Mat Mat Mat Fac DSF Fac Fac Ext Fac Res Machines Accessed 6 | . . . . 1 . . 1 1 2 1 Terminals 6 | . . . . 1 . . 1 1 2 1 Fabricators . | . . . . . . . . . . . Repair Stations . | . . . . . . . . . . . Recycling Units . | . . . . . . . . . . . Scanalyzers . | . . . . . . . . . . . Garrison Access . | . . . . . . . . . . . Total Hacks 15 | . . . . 1 . . 2 5 5 2 Successful 4 | . . . . 1 . . 1 1 1 . Failed 11 | . . . . . . . 1 4 4 2 Catastrophic 3 | . . . . . . . . 1 1 1 Database Lockouts . | . . . . . . . . . . . Manual 2 | . . . . . . . . . . 2 Terminals 15 | . . . . 1 . . 2 5 5 2 Fabricators . | . . . . . . . . . . . Repair Stations . | . . . . . . . . . . . Recycling Units . | . . . . . . . . . . . Scanalyzers . | . . . . . . . . . . . Garrison Access . | . . . . . . . . . . . Terminal Hacks 4 | . . . . 1 . . 1 1 1 . Open Door 1 | . . . . . . . . 1 . . Open DSF 1 | . . . . 1 . . . . . . Branch Access Points 1 | . . . . . . . 1 . . . Terminal Index 1 | . . . . . . . . . 1 . Fabricator Hacks . | . . . . . . . . . . . Repair Station Hacks . | . . . . . . . . . . . Recycling Unit Hacks . | . . . . . . . . . . . Scanalyzer . | . . . . . . . . . . . Garrison Access Hacks . | . . . . . . . . . . . Unauthorized Hacks . | . . . . . . . . . . . Terminals . | . . . . . . . . . . . Fabricators . | . . . . . . . . . . . Repair Stations . | . . . . . . . . . . . Recycling Units . | . . . . . . . . . . . Scanalyzers . | . . . . . . . . . . . Garrison Access . | . . . . . . . . . . . Data Cores Recovered . | . . . . . . . . . . . Used . | . . . . . . . . . . . Hacking Detections 5 | . . . . . . . 1 1 2 1 Full Trace Events 2 | . . . . . . . . . 1 1 Feedback Events . | . . . . . . . . . . . Feedback Blocked . | . . . . . . . . . . . Robot Schematics Acquired . | . . . . . . . . . . . Robots Built . | . . . . . . . . . . . Authchips . | . . . . . . . . . . . Time . | . . . . . . . . . . . Total Robot Build Rating . | . . . . . . . . . . . Part Schematics Acquired . | . . . . . . . . . . . Parts Built . | . . . . . . . . . . . Authchips . | . . . . . . . . . . . Time . | . . . . . . . . . . . Total Part Build Rating . | . . . . . . . . . . . Parts Repaired . | . . . . . . . . . . . Time . | . . . . . . . . . . . Parts Recycled . | . . . . . . . . . . . Recycled Matter . | . . . . . . . . . . . Retrieved Matter . | . . . . . . . . . . . Retrieved Components . | . . . . . . . . . . . Parts Scanalyzed . | . . . . . . . . . . . Part Schematics Acquired . | . . . . . . . . . . . Parts Damaged . | . . . . . . . . . . . Bothacking | -11 -10 -9 -8 -7 -7 -6 -5 -5 -4 -3 ------------ Run | Yrd Mat Mat Mat Fac DSF Fac Fac Ext Fac Res Used RIF Installer . | . . . . . . . . . . . Robots Hacked . | . . . . . . . . . . . Non-combat . | . . . . . . . . . . . Combat . | . . . . . . . . . . . Robot Hacks Applied . | . . . . . . . . . . . Relay Couplers Released . | . . . . . . . . . . . Fabnet Peak Effective % . | . . . . . . . . . . . Robots Rewired . | . . . . . . . . . . . Allies Hacked . | . . . . . . . . . . . Hacks Repelled . | . . . . . . . . . . . Allies | -11 -10 -9 -8 -7 -7 -6 -5 -5 -4 -3 -------- Run | Yrd Mat Mat Mat Fac DSF Fac Fac Ext Fac Res Total Allies . | . . . . . . . . . . . Largest Group . | . . . . . . . . . . . Highest-Rated Group . | . . . . . . . . . . . Highest-Rated Ally . | . . . . . . . . . . . Total Orders . | . . . . . . . . . . . Ally Attacks . | . . . . . . . . . . . Total Damage . | . . . . . . . . . . . Kills . | . . . . . . . . . . . Allies Corrupted . | . . . . . . . . . . . Allies Melted . | . . . . . . . . . . . Intel | -11 -10 -9 -8 -7 -7 -6 -5 -5 -4 -3 ------- Run | Yrd Mat Mat Mat Fac DSF Fac Fac Ext Fac Res Robot Analysis Total . | . . . . . . . . . . . Derelict Logs Recovered . | . . . . . . . . . . . Drone Launches . | . . . . . . . . . . . Drone Recoveries . | . . . . . . . . . . . Exploration | -11 -10 -9 -8 -7 -7 -6 -5 -5 -4 -3 ------------- Run | Yrd Mat Mat Mat Fac DSF Fac Fac Ext Fac Res Turns Passed 619 | 10 34 42 33 1 29 105 124 36 78 127 Spaces Moved 1272 | 20 65 84 61 3 55 209 271 94 166 244 Core 862 | 20 65 84 61 3 55 188 56 . 86 244 Treads . | . . . . . . . . . . . Legs . | . . . . . . . . . . . Wheels . | . . . . . . . . . . . Hover . | . . . . . . . . . . . Flight 410 | . . . . . . 21 215 94 80 . Fastest Speed 26 | 50 50 50 50 50 50 37 26 34 40 50 Average Speed 46 | 50 50 50 50 50 50 48 40 34 45 50 Slowest Speed 50 | 50 50 50 50 50 50 50 50 40 50 50 Overloaded Moves . | . . . . . . . . . . . Propulsion Burnouts . | . . . . . . . . . . . Robots Hopped 7 | . . . . . . . 6 1 . . Cave-ins Triggered . | . . . . . . . . . . . Exploration Rate (%) 21 | 3 25 17 12 . 91 9 13 22 9 13 Regions Visited 10 Branch Regions 1 Pre-discovered Areas . | . . . . . . . . . . . Known Exits Taken 2 | . . . . 1 . . 1 . . . Unknown Exits Taken 7 | 1 1 1 1 . . 1 . 1 1 . Scrap Searched . | . . . . . . . . . . . Spaces Dug . | . . . . . . . . . . . Terrain Destroyed . | . . . . . . . . . . . Melee . | . . . . . . . . . . . Projectile . | . . . . . . . . . . . AOE . | . . . . . . . . . . . Terrain Rammed . | . . . . . . . . . . . Walls Destroyed . | . . . . . . . . . . . Machines Disabled . | . . . . . . . . . . . Actions | -11 -10 -9 -8 -7 -7 -6 -5 -5 -4 -3 --------- Run | Yrd Mat Mat Mat Fac DSF Fac Fac Ext Fac Res Total 1286 | 19 65 83 62 2 56 210 276 96 168 249 Wait . | . . . . . . . . . . . Move 1249 | 19 64 83 60 2 54 208 259 91 165 244 Hop 6 | . . . . . . . 5 1 . . Pick Up 7 | . . . 1 . 1 . 5 . . . Fast Attach 8 | . . . 1 . . 2 5 . . . Attach 5 | . . . . . 1 . . 4 . . Detach . | . . . . . . . . . . . Swap . | . . . . . . . . . . . Drop 1 | . . . . . . . 1 . . . Fire . | . . . . . . . . . . . Melee . | . . . . . . . . . . . Ram 10 | . 1 . . . . . 1 . 3 5 Kick . | . . . . . . . . . . . Crush . | . . . . . . . . . . . Escape Stasis . | . . . . . . . . . . . Rewire . | . . . . . . . . . . . Trap . | . . . . . . . . . . . Miscellaneous . | . . . . . . . . . . . Route ------- -11/Scrapyard -10/Materials -9/Materials -8/Materials -7/Factory -7/DSF -6/Factory -5/Factory (discovered 4 exits: *Upp x2 / *Ext x2) -5/Extension -4/Factory -3/Research History --------- Turn | Location | Event 3 | -11/Scrapyard | Discovered new exit (range 15) 11 | -11/Scrapyard | Entered Materials 38 | -10/Materials | Discovered new exit (range 15) 45 | -10/Materials | Entered another Materials area 45 | -9/Materials | Evolved 2 slots: Utility x2 80 | -9/Materials | Discovered new exit (range 16) 87 | -9/Materials | Entered another Materials area 87 | -8/Materials | Evolved 2 slots: Utility x2 116 | -8/Materials | Discovered new exit (range 10) 120 | -8/Materials | Entered Factory 120 | -7/Factory | Evolved 2 slots: Utility x2 121 | -7/Factory | Identified exit to DSF 121 | -7/Factory | Entered DSF 121 | -7/DSF | Met a pair of Sappers preparing to destroy DSF 139 | -7/DSF | Additional patrols routed to DSF 143 | -7/DSF | Discovered new exit (range 15) 150 | -7/DSF | Entered Factory 150 | -6/Factory | Evolved 2 slots: Propulsion x2 250 | -6/Factory | Discovered new exit (range 14) 255 | -6/Factory | Entered another Factory area 255 | -5/Factory | Evolved 2 slots: Utility x2 291 | -5/Factory | Identified exit to Upper Caves 291 | -5/Factory | Identified exit to Extension 305 | -5/Factory | Build established: Mutant 352 | -5/Factory | Core integrity fell below 50% 375 | -5/Factory | Core integrity fell below 20% 379 | -5/Factory | Entered Extension 391 | -5/Extension | Lost 3 parts (3n) 409 | -5/Extension | Spotted B-75 Beast 411 | -5/Extension | Spotted B-75 Beast 414 | -5/Extension | Discovered new exit (range 3) 415 | -5/Extension | Entered Factory 415 | -4/Factory | Evolved 2 slots: Propulsion x2 434 | -4/Factory | Spotted B-86 Titan 446 | -4/Factory | Lost 3 parts (1p2n) 465 | -4/Factory | Core integrity fell below 50% 490 | -4/Factory | Discovered new exit (range 5) 493 | -4/Factory | Entered Research 493 | -3/Research | Evolved 2 slots: Utility x2 526 | -3/Research | Spotted B-86 Titan 590 | -3/Research | Core integrity fell below 50% 608 | -3/Research | Core integrity fell below 20% 620 | -3/Research | Destroyed by S-43 Plague with Heavy Machine Gun Last Messages --------------- 00593_ Triggered Tesla Bomb Trap. 00593_ A bubble of electromagnetic force engulfs the area. 00593_ Tesla Bomb Trap short circuited. 00593_ Subatomic Condenser disabled. 00593_ Tesla Bomb Trap short circuited. 00593_ A bubble of electromagnetic force engulfs the area. 00593_ Door malfunctions. 00593_ Tesla Bomb Trap short circuited. 00593_ A bubble of electromagnetic force engulfs the area. 00594_ Triggered Tesla Bomb Trap. 00594_ A bubble of electromagnetic force engulfs the area. 00612_ Slammed into S-43 Plague. 00613_ Slammed into U-05 Engineer. 00613_ ALERT: Construction progress impeded, dispatching reinforcements to local area. 00617_ Slammed into S-43 Plague. 00617_ Destabilizing: System corrupted (+2). 00618_ Slammed into S-43 Plague. 00620_ Slammed into U-05 Engineer. Map ----- +----------------------------------------------------+ | ?????????????????????????????????????????????????? | | ?????????????????????????????????????????????????? | | ?????????????????????????????????????????????????? | | ?????????????????????????????????????????????????? | | ?????????????????????????????????????????????????? | | ?????????????????????????????????????????????????? | | ?????????????????????????????????????????????????? | | ?????????????????????????????????????????????????? | | ?????????????????????????????????????????????????? | | ?????????????????????????????????????????????????? | | ?????????????????????????????????????????????????? | | ?????????????????????????????????????????????????? | | ?????????????????????????????????????????????????? | | ???????########??????????????????????????????????? | | ???????# #??????????????????????????????????? | | ???????# #??????????????????????????????????? | | ???????# #??????????????????????????????????? | | ???????# ! #??????????????????????????????????? | | ???????# #??#########???????????????????????? | | ????????? ???# #???????????????????????? | | ?????????##+##???#[ !! #???????????????????????? | | ?????????# ##### ! #???????????????????????? | | ?????????# / #???????????????????????? | | ?????????# ### # #???????????????????????? | | ?????????## ##?# #####+########??????????????????? | | ?########## #??# s sss%s @ u +??????????????????? | | ?# #??# ##############??????????????????? | | ?# #######/#### #???????????????????????????????? | | ?# # ## #???????????????????????????????? | | ?# # ] ## #???????????????????????????????? | | ## # ## #???????????????????????????????? | | # """## #???????????????????????????????? | | # """## #???????????????????????????????? | | # """#? ????????????????????????????????? | | # #? ????????????????????????????????? | | # #? ????????????????????????????????? | | #####/#####? ????????????????????????????????? | | " #?? ????????????????????????????????? | | #?? ????????????????????????????????? | | / #?? ????????????????????????????????? | | #???????????????????????????????????? | | ######### #???????????????????????????????????? | | ????????# #???????????????????????????????????? | | ????????# #???????????????????????????????????? | | ????????+ #???????????????????????????????????? | | ????????? #???????????????????????????????????? | | ????????? #???????????????????????????????????? | | ????????? #???????????????????????????????????? | | ????????? #???????????????????????????????????? | | ????????? #???????????????????????????????????? | +----------------------------------------------------+ Best States ------------- Heat Dissipation 46 Energy Generation 15 Energy Capacity 150 Matter Stores 300 Matter Capacity 300 Sight Range 16 Terrain Scan Density 10 Evasion (%) 63 Item Schematics ----------------- None Robot Schematics ------------------ None Fabricated ------------ Nothing Alien Tech Used ----------------- None Achievements -------------- None Challenges ------------ None Game ------ Seed WardroneTransmissionMantle Manual? 0 Play Time 00:16:18 Cumulative 86.9 hours Start 2024.05.04 @ 06:19:58 End 2024.05.04 @ 06:34:39 Sessions 1 Manual Loads 0 Difficulty Rogue Special Mode None Game No. 86 Rogue 86 Adventurer 0 Explorer 0 Win Type - Total 11 Types 10/0/1/0/0/0/0/0/0 Lore% 51 Gallery% 46 Achievement% 46 Wizard Run 0 Options --------- Layout 0 ASCII 0 Keyboard 1 Movement Vi Keybinds 0 Fullscreen 2 Font 16/SmallcapsGlow Map View 64x51 Zoom Use 0% Tactical HUD 1 Map Filters NONE Filters NONE Steam X RUN: 642598ea-5a9b-4a7d-ae18-1b4e400f5403